bitfinex/quotes_ETHUSD_20250908
["timestamp","ask_amount","ask_price","bid_price","bid_amount"]
[1757356547823,38.131,4326.0,4325.9,40.93265768]
[1757356548548,38.5695,4326.0,4325.9,40.93265768]
[1757356549529,39.7995,4326.0,4325.9,40.93265768]
[1757356550554,40.0902,4326.0,4325.9,40.93265768]
[1757356550737,43.6181,4326.0,4325.9,40.93265768]
[1757356551759,43.6181,4326.0,4325.9,41.04785768]
[1757356552262,44.8481,4326.0,4325.9,41.04785768]
[1757356553159,44.5574,4326.0,4325.9,41.04785768]
[1757356553314,41.821,4326.0,4325.9,41.04785768]
[1757356553827,43.051,4326.0,4325.9,41.04785768]
[1757356554028,43.4895,4326.0,4325.9,41.04785768]
[1757356555356,44.7195,4326.0,4325.9,41.04785768]
[1757356555913,47.3081,4326.0,4325.9,41.04785768]
[1757356556961,48.5381,4326.0,4325.9,41.04785768]
[1757356558415,49.7681,4326.0,4325.9,41.04785768]
[1757356559822,50.9981,4326.0,4325.9,41.04785768]
[1757356560738,47.971,4326.0,4325.9,41.04785768]
[1757356561139,49.201,4326.0,4325.9,42.29402469]
[1757356561354,49.201,4326.0,4325.9,42.04214229]
[1757356562179,49.201,4326.0,4325.9,41.74114744]
[1757356562576,50.431,4326.0,4325.9,41.74114744]
[1757356563679,53.4526,4326.0,4325.9,37.89314744]
[1757356563841,54.6826,4326.0,4325.9,41.74414744]
[1757356565229,55.9126,4326.0,4325.9,41.74414744]
[1757356566625,57.1426,4326.0,4325.9,41.74414744]
[1757356566825,54.121,4326.0,4325.9,41.74414744]
[1757356567440,54.5936,4326.0,4325.9,41.74414744]
[1757356568628,55.351,4326.0,4325.9,41.74414744]
[1757356568861,55.351,4326.0,4325.9,47.28714744]
[1757356569226,55.8236,4326.0,4325.9,47.28714744]
[1757356569645,58.0783,4326.0,4325.9,47.28714744]
[1757356570682,59.6026,4326.0,4325.9,47.28714744]
[1757356572043,60.8326,4326.0,4325.9,47.28714744]
[1757356573468,62.0626,4326.0,4325.9,47.28714744]
[1757356574375,62.0626,4326.0,4325.9,43.43614744]
[1757356574548,62.0626,4326.0,4325.9,47.28514744]
[1757356574872,63.2926,4326.0,4325.9,41.00928976]
[1757356575096,64.40731102,4326.0,4325.9,11.85828976]
[1757356575444,64.40731102,4326.0,4325.9,14.85828976]
[1757356575831,66.71891527,4326.0,4325.9,8.00928976]
[1757356576031,68.74091527,4326.0,4325.9,5.623]
[1757356577620,69.97091527,4326.0,4325.9,5.623]
[1757356578248,69.97091527,4326.0,4325.9,5.624]
[1757356578848,71.20091527,4326.0,4325.9,5.624]
[1757356580372,72.43091527,4326.0,4325.9,5.624]
[1757356581963,73.66091527,4326.0,4325.9,5.624]
[1757356583155,74.89091527,4326.0,4325.9,5.624]
[1757356584587,76.12091527,4326.0,4325.9,5.624]
[1757356585989,77.35091527,4326.0,4325.9,5.624]
[1757356586954,74.24731102,4326.0,4325.9,5.624]
[1757356587269,75.47731102,4326.0,4325.9,5.624]
[1757356587945,77.78891527,4326.0,4325.9,5.624]
[1757356588641,79.81091527,4326.0,4325.9,5.624]
[1757356589845,76.70731102,4326.0,4325.9,5.624]
[1757356590091,77.93731102,4326.0,4325.9,5.624]
[1757356590560,80.24891527,4326.0,4325.9,5.624]
[1757356590758,77.93731102,4326.0,4325.9,5.624]
[1757356591179,73.801,4326.0,4325.9,5.624]
[1757356591501,75.031,4326.0,4325.9,6.31739872]
[1757356591645,75.031,4326.0,4325.9,8.6290564]
[1757356592257,75.031,4326.0,4325.9,6.31739872]
[1757356592477,75.031,4326.0,4325.9,8.6290564]
[1757356592640,76.261,4326.0,4325.9,8.6290564]
[1757356592986,76.261,4326.0,4325.9,6.31739872]
[1757356593211,76.261,4326.0,4325.9,11.6290564]
[1757356594045,77.491,4326.0,4325.9,11.6290564]
[1757356594662,77.491,4326.0,4325.9,11.6307564]
[1757356595015,77.491,4326.0,4325.9,42.04695125]
[1757356595349,78.721,4326.0,4325.9,42.04695125]
[1757356596156,78.721,4326.0,4325.9,41.7459564]
[1757356596375,78.721,4326.0,4325.9,41.7462564]
[1757356596888,79.951,4326.0,4325.9,41.7462564]
[1757356598489,81.181,4326.0,4325.9,41.7462564]
[1757356599768,82.411,4326.0,4325.9,41.7462564]
[1757356600097,82.411,4326.0,4325.9,41.7479564]
[1757356601096,83.641,4326.0,4325.9,42.04895125]
[1757356601870,83.641,4326.0,4325.9,41.7462564]
[1757356602699,84.871,4326.0,4325.9,41.7462564]
[1757356604157,86.101,4326.0,4325.9,11.7462564]
[1757356604357,86.101,4326.0,4325.9,41.7462564]
[1757356605668,87.331,4326.0,4325.9,41.7462564]
[1757356606462,87.331,4326.0,4325.9,11.7462564]
[1757356606656,87.331,4326.0,4325.9,37.8932564]
[1757356606861,90.5034,4326.0,4325.9,7.8932564]
[1757356607063,91.7334,4326.0,4325.9,11.7432564]
[1757356607662,91.7334,4326.0,4325.9,7.8932564]
[1757356607872,94.00130797,4326.0,4325.9,9.31739872]
[1757356608077,94.00130797,4326.0,4325.9,11.6290564]
[1757356608562,95.23130797,4326.0,4325.9,11.6290564]
[1757356608958,95.23130797,4326.0,4325.9,5.46639872]
[1757356609204,95.23130797,4326.0,4325.9,5.624]
[1757356609372,95.23130797,4326.0,4325.9,8.624]
[1757356609708,97.54291222,4326.0,4325.9,5.625]
[1757356610003,99.56491222,4326.0,4325.9,8.626]
[1757356610568,99.56491222,4326.0,4325.9,5.626]
[1757356611209,100.79491222,4326.0,4325.9,8.626]
[1757356611366,100.79491222,4326.0,4325.9,4.773]
[1757356611713,100.79491222,4326.0,4325.9,5.626]
[1757356612719,102.02491222,4326.0,4325.9,5.626]
[1757356614274,103.25491222,4326.0,4325.9,5.626]
[1757356615417,5.48676565,4325.9,4325.8,0.002]
[1757356615723,5.48676565,4325.9,4325.8,3.854]
[1757356615933,8.65916565,4325.9,4325.8,3.854]
[1757356617142,9.88916565,4325.9,4325.8,3.854]
[1757356618615,11.11916565,4325.9,4325.8,3.854]
[1757356619865,12.34916565,4325.9,4325.8,3.854]
[1757356621347,13.57916565,4325.9,4325.8,3.854]
[1757356622106,13.57916565,4325.9,4325.8,0.002]
[1757356622397,13.57916565,4325.9,4325.8,3.855]
[1757356622753,14.80916565,4325.9,4325.8,3.855]
[1757356624653,16.03916565,4325.9,4325.8,3.855]
[1757356625149,15.13196565,4325.9,4325.8,3.855]
[1757356625590,15.92396565,4325.9,4325.8,3.855]
[1757356625894,15.13196565,4325.9,4325.8,3.855]
[1757356626078,17.15396565,4325.9,4325.8,3.855]
[1757356627495,18.38396565,4325.9,4325.8,3.855]
[1757356628575,18.38496565,4325.9,4325.8,3.855]
[1757356628759,19.61496565,4325.9,4325.8,3.855]
[1757356630396,20.84496565,4325.9,4325.8,3.855]
[1757356630698,17.67256565,4325.9,4325.8,3.855]
[1757356631677,18.90256565,4325.9,4325.8,3.855]
[1757356632903,13.531,4325.9,4325.8,6.855]
[1757356633071,14.761,4325.9,4325.8,9.16841112]
[1757356634418,15.991,4325.9,4325.8,9.16841112]
[1757356635776,17.221,4325.9,4325.8,9.16841112]
[1757356637125,18.451,4325.9,4325.8,9.16841112]
[1757356638619,19.681,4325.9,4325.8,9.16841112]
[1757356639620,19.681,4325.9,4325.8,9.16671112]
[1757356639822,20.911,4325.9,4325.8,9.16671112]
[1757356641219,22.141,4325.9,4325.8,9.16671112]
[1757356642692,23.371,4325.9,4325.8,9.16671112]
[1757356644211,24.601,4325.9,4325.8,9.16671112]
[1757356645499,25.831,4325.9,4325.8,9.16671112]
[1757356646886,27.061,4325.9,4325.8,9.16671112]
[1757356647287,27.061,4325.9,4325.8,39.16841112]
[1757356647816,27.061,4325.9,4325.8,39.16671112]
[1757356648319,28.291,4325.9,4325.8,39.16671112]
[1757356649699,29.521,4325.9,4325.8,39.16671112]
[1757356650130,29.521,4325.9,4325.8,39.16471112]
[1757356651033,30.751,4325.9,4325.8,39.16471112]
[1757356651340,30.751,4325.9,4325.8,9.16471112]
[1757356651632,30.751,4325.9,4325.8,39.16471112]
[1757356652492,31.981,4325.9,4325.8,39.16471112]
[1757356652684,31.981,4325.9,4325.8,9.16471112]
[1757356652885,35.1851,4325.9,4325.8,3.002]
[1757356653088,35.1851,4325.9,4325.8,9.16471112]
[1757356653491,35.1851,4325.9,4325.8,3.002]
[1757356653690,37.45300797,4325.9,4325.8,6.853]
[1757356653996,38.68300797,4325.9,4325.8,6.853]
[1757356655204,39.91300797,4325.9,4325.8,6.853]
[1757356656447,39.91300797,4325.9,4325.8,3.002]
[1757356656652,41.93500797,4325.9,4325.8,0.002]
[1757356656804,44.24666565,4325.9,4325.8,3.854]
[1757356657229,44.24666565,4325.9,4325.8,0.002]
[1757356657562,44.24666565,4325.9,4325.6,0.002]
[1757356657563,3.10376456,4325.7,4325.6,0.002]
[1757356657755,3.10376456,4325.7,4325.6,3.667]
[1757356657906,7.53786456,4325.7,4325.6,0.002]
[1757356658100,7.53786456,4325.7,4325.6,3.854]
[1757356659412,8.76786456,4325.7,4325.6,3.854]
[1757356659624,11.03577253,4325.7,4325.6,3.854]
[1757356660827,12.26577253,4325.7,4325.6,3.854]
[1757356662331,13.49577253,4325.7,4325.6,3.854]
[1757356663546,14.72577253,4325.7,4325.6,3.854]
[1757356665153,15.95577253,4325.7,4325.6,3.854]
[1757356666340,15.95577253,4325.7,4325.6,0.002]
[1757356666523,17.18577253,4325.7,4325.6,3.853]
[1757356668214,18.41577253,4325.7,4325.6,3.853]
[1757356669666,13.33790797,4325.7,4325.6,3.853]
[1757356669832,15.64967253,4325.7,4325.6,3.853]
[1757356670033,16.44167253,4325.7,4325.6,3.853]
[1757356670827,17.21547253,4325.7,4325.6,3.853]
[1757356671022,20.87577253,4325.7,4325.6,3.853]
[1757356672522,22.10577253,4325.7,4325.6,3.853]
[1757356673128,21.80097253,4325.7,4325.6,3.853]
[1757356673325,16.58990797,4325.7,4325.6,3.8569]
[1757356673526,18.90167253,4325.7,4325.6,3.8569]
[1757356673758,20.13167253,4325.7,4325.6,3.8569]
[1757356675538,21.36167253,4325.7,4325.6,3.8569]
[1757356676072,22.13547253,4325.7,4325.6,3.853]
[1757356676369,21.83067253,4325.7,4325.6,3.853]
[1757356677234,25.49097253,4325.7,4325.6,3.853]
[1757356677447,25.79577253,4325.7,4325.6,3.853]
[1757356678644,27.02577253,4325.7,4325.6,3.853]
[1757356680035,28.25577253,4325.7,4325.6,3.853]
[1757356681431,29.48577253,4325.7,4325.6,3.853]
[1757356681867,29.18097253,4325.7,4325.6,3.853]
[1757356682033,26.28167253,4325.7,4325.6,3.853]
[1757356682670,29.43607253,4325.7,4325.6,3.853]
[1757356682901,30.66607253,4325.7,4325.6,0.002]
[1757356683200,3.10387145,4325.5,4325.4,1.776]
[1757356683376,3.10387145,4325.5,4325.4,4.781]
[1757356683558,6.25827145,4325.5,4325.4,4.781]
[1757356684262,6.25827145,4325.5,4325.4,1.776]
[1757356684459,7.48827145,4325.5,4325.4,5.625]
[1757356684680,9.75617942,4325.5,4325.4,3.851]
[1757356685076,9.75617942,4325.5,4325.4,0.002]
[1757356686005,10.98617942,4325.5,4325.4,0.002]
[1757356687580,12.21617942,4325.5,4325.4,0.002]
[1757356688815,19.33617942,4325.5,4325.4,0.002]
[1757356689109,20.56617942,4325.5,4325.4,0.002]
[1757356690429,21.79617942,4325.5,4325.4,0.002]
[1757356691786,23.02617942,4325.5,4325.4,0.002]
[1757356692615,22.28327942,4325.5,4325.4,0.002]
[1757356692927,7.38,4325.5,4325.4,0.0059]
[1757356693130,8.61,4325.5,4325.4,0.0059]
[1757356693713,8.61,4325.5,4325.4,0.0083]
[1757356693876,8.61,4325.5,4325.4,0.0096]
[1757356694386,8.61,4325.5,4325.4,0.0059]
[1757356694583,9.84,4325.5,4325.4,0.0059]
[1757356694785,9.84,4325.5,4325.4,3.002]
[1757356695003,12.94387145,4325.5,4325.4,6.853]
[1757356695513,16.09827145,4325.5,4325.4,3.854]
[1757356695871,17.32827145,4325.5,4325.4,3.854]
[1757356696070,19.59617942,4325.5,4325.4,3.854]
[1757356696483,19.59617942,4325.5,4325.4,0.002]
[1757356696714,19.59617942,4325.5,4325.4,3.853]
[1757356697218,19.59617942,4325.5,4325.4,0.002]
[1757356697376,20.82617942,4325.5,4325.4,3.854]
[1757356697576,23.25717942,4325.5,4325.4,3.854]
[1757356697816,20.82617942,4325.5,4325.4,3.854]
[1757356698044,20.82617942,4325.5,4325.4,0.002]
[1757356698548,30.37717942,4325.5,4325.4,0.002]
[1757356698732,31.60717942,4325.5,4325.4,0.002]
[1757356699203,44.88540606,4325.5,4325.4,0.002]
[1757356699717,45.38346637,4325.5,4325.4,0.002]
[1757356700123,46.61346637,4325.5,4325.4,0.002]
[1757356700837,30.40617942,4325.5,4325.4,0.002]
[1757356701450,31.63617942,4325.5,4325.4,0.002]
[1757356703153,32.86617942,4325.5,4325.4,0.002]
[1757356704119,35.29717942,4325.5,4325.4,0.002]
[1757356704345,36.52717942,4325.5,4325.4,0.002]
[1757356705822,37.75717942,4325.5,4325.4,0.002]
[1757356707267,39.48498028,4325.5,4325.4,0.002]
[1757356708670,40.71498028,4325.5,4325.4,0.002]
[1757356710336,41.44717942,4325.5,4325.4,0.002]
[1757356710660,41.94490613,4325.5,4325.4,0.002]
[1757356711217,3.1039249,4325.4,4325.3,1e-08]
[1757356711422,11.65783287,4325.4,4325.3,1e-08]
[1757356711646,14.77683287,4325.4,4325.3,1e-08]
[1757356711963,16.00683287,4325.4,4325.3,1e-08]
[1757356713173,17.23683287,4325.4,4325.3,1e-08]
[1757356713528,13.38183287,4325.4,4325.3,1e-08]
[1757356713731,17.23583287,4325.4,4325.3,1e-08]
[1757356714573,18.46583287,4325.4,4325.3,1e-08]
[1757356715360,25.58583287,4325.4,4325.3,1e-08]
[1757356716133,26.81583287,4325.4,4325.3,1e-08]
[1757356717572,28.04583287,4325.4,4325.3,1e-08]
[1757356718745,29.27583287,4325.4,4325.3,1e-08]
[1757356720207,31.00352566,4325.4,4325.3,1e-08]
[1757356720684,30.50583287,4325.4,4325.3,1e-08]
[1757356721582,31.73583287,4325.4,4325.3,1e-08]
[1757356723086,32.96583287,4325.4,4325.3,1e-08]
[1757356723299,33.46361087,4325.4,4325.3,1e-08]
[1757356724299,34.69361087,4325.4,4325.3,1e-08]
[1757356724863,5.53508526,4325.1,4325.0,0.002]
[1757356725069,21.07921987,4325.1,4325.0,0.002]
[1757356725400,24.69599787,4325.1,4325.0,0.002]
[1757356725608,25.92599787,4325.1,4325.0,0.002]
[1757356726016,18.95599787,4325.1,4325.0,0.002]
[1757356726225,10.45299323,4325.1,4325.0,0.002]
[1757356726515,16.50152327,4325.1,4325.0,0.002]
[1757356727120,27.15674991,4325.1,4325.0,0.002]
[1757356728380,25.7149757,4325.1,4325.0,0.002]
[1757356728614,26.9449757,4325.1,4325.0,0.002]
[1757356730194,28.1749757,4325.1,4325.0,0.002]
[1757356731696,29.4049757,4325.1,4325.0,0.002]
[1757356733005,30.6349757,4325.1,4325.0,0.002]
[1757356733609,30.3398757,4325.1,4325.0,0.002]
[1757356734009,30.6349757,4325.1,4325.0,0.002]
[1757356734629,31.8649757,4325.1,4325.0,0.002]
[1757356734824,29.4339757,4325.1,4325.0,0.002]
[1757356734988,31.8649757,4325.1,4325.0,0.002]
[1757356735385,29.4339757,4325.1,4325.0,0.002]
[1757356735815,31.8649757,4325.1,4325.0,0.002]
[1757356736019,30.6639757,4325.1,4325.0,0.002]
[1757356737100,33.0949757,4325.1,4325.0,0.002]
[1757356737298,3.223,4324.9,4324.8,1e-08]
[1757356737498,7.57153004,4324.9,4324.8,1e-08]
[1757356737733,10.69053004,4324.9,4324.8,1e-08]
[1757356738026,13.00272222,4324.9,4324.8,1e-08]
[1757356738624,9.88372222,4324.9,4324.8,0.00390001]
[1757356738831,13.38163019,4324.9,4324.8,0.00390001]
[1757356740057,9.53163019,4324.9,4324.8,1e-08]
[1757356740354,8.33063019,4324.9,4324.8,0.00390001]
[1757356740655,7.83210015,4324.9,4324.8,0.00390001]
[1757356740853,7.83210015,4324.9,4324.8,1e-08]
[1757356741615,9.06210015,4324.9,4324.8,1e-08]
[1757356742912,10.29210015,4324.9,4324.8,1e-08]
[1757356743553,10.7910231,4324.9,4324.8,1e-08]
[1757356743760,11.2407231,4324.9,4324.8,1e-08]
[1757356744659,15.1697231,4324.9,4324.8,1e-08]
[1757356745524,19.0197231,4324.9,4324.8,1e-08]
[1757356746043,20.2497231,4324.9,4324.8,1e-08]
[1757356747332,21.4797231,4324.9,4324.8,1e-08]
[1757356747933,23.9107231,4324.9,4324.8,1e-08]
[1757356748120,31.0307231,4324.9,4324.8,1e-08]
[1757356748748,32.2607231,4324.9,4324.8,1e-08]
[1757356749997,32.2607231,4324.9,4324.8,0.00200001]
[1757356750147,33.4917231,4324.9,4324.8,0.00200001]
[1757356751567,34.7217231,4324.9,4324.8,0.00200001]
[1757356752652,3.223,4324.7,4324.6,1e-08]
[1757356752952,3.223,4324.7,4323.4,2.202]
[1757356752953,0.792,4324.4,4324.1,1e-08]
[1757356753187,11.40011891,4324.2,4324.1,1e-08]
[1757356753349,11.89895859,4324.2,4324.1,1e-08]
[1757356753548,17.00346656,4324.2,4324.1,1e-08]
[1757356753950,17.00346656,4324.2,4323.8,1e-08]
[1757356753951,8.53572693,4323.9,4323.8,1e-08]
[1757356754150,8.53572693,4323.9,4323.1,0.02]
[1757356754151,0.792,4323.2,4323.1,0.02]
[1757356754458,25.66610626,4323.2,4323.1,1e-08]
[1757356754670,3.10558304,4322.3,4322.2,1.775]
[1757356754901,3.10558304,4322.3,4321.8,0.025]
[1757356754902,2.31379717,4321.9,4321.8,0.025]
[1757356755105,14.9462496,4321.9,4321.8,0.025]
[1757356755425,18.0949496,4321.9,4321.8,0.025]
[1757356755572,8.77545243,4321.2,4320.8,0.025]
[1757356755771,15.82916965,4321.2,4320.8,0.025]
[1757356755963,18.97786965,4321.2,4320.8,0.025]
[1757356756163,21.40886965,4321.2,4320.8,0.025]
[1757356757113,21.40886965,4321.2,4320.1,0.02]
[1757356757114,3.10670765,4320.2,4320.1,0.02]
[1757356757345,11.09016008,4320.2,4320.1,0.02]
[1757356757550,13.12903876,4320.2,4320.1,0.02]
[1757356757819,13.12903876,4320.2,4319.1,0.02]
[1757356757820,0.792,4319.3,4319.1,0.02]
[1757356757969,10.29869599,4319.2,4319.1,0.02]
[1757356758169,11.09069599,4319.2,4319.1,0.02]
[1757356758410,12.81757923,4319.2,4319.1,0.0239]
[1757356758613,12.81757923,4319.2,4319.1,0.02]
[1757356758766,12.81757923,4319.2,4319.1,0.0239]
[1757356759170,0.792,4319.2,4319.1,0.03]
[1757356759372,1.23,4320.2,4319.1,0.03]
[1757356759673,1.23,4319.2,4319.1,0.03]
[1757356759875,1.23,4319.2,4319.1,2.33919716]
[1757356760373,1.23,4319.2,4319.1,2.34529716]
[1757356760729,1.23,4319.2,4319.1,0.03]
[1757356761078,1.23,4319.2,4319.1,2.34529716]
[1757356761275,2.46,4319.2,4319.1,2.34529716]
[1757356762487,3.69,4319.2,4319.1,2.34529716]
[1757356763103,3.8052,4319.2,4319.1,2.34529716]
[1757356763353,3.8052,4319.2,4319.1,0.03]
[1757356763804,3.8052,4319.2,4319.1,3.906]
[1757356764001,5.0352,4319.2,4319.1,9.22129716]
[1757356764991,5.0352,4319.2,4319.1,6.906]
[1757356765318,5.0352,4319.2,4319.1,9.22129716]
[1757356765484,6.2652,4319.2,4319.1,6.906]
[1757356765684,6.2652,4319.2,4319.1,6.9036]
[1757356765910,6.2652,4319.2,4319.1,9.22129716]
[1757356766623,6.15,4319.2,4319.1,9.22129716]
[1757356766834,7.38,4319.2,4319.1,9.22129716]
[1757356767208,7.38,4319.2,4319.1,9.22329716]
[1757356768175,8.61,4319.2,4319.1,9.22329716]
[1757356769650,9.84,4319.2,4319.1,9.21719716]
[1757356770237,9.84,4319.2,4319.1,9.22089716]
[1757356770401,9.84,4319.2,4319.1,9.22329716]
[1757356770783,9.84,4319.2,4319.1,9.21719716]
[1757356770996,11.07,4319.2,4319.1,9.21719716]
[1757356772331,12.3,4319.2,4319.1,9.21719716]
[1757356773007,12.3,4319.2,4319.1,6.9019]
[1757356773344,12.3,4319.2,4319.1,9.21719716]
[1757356773710,13.53,4319.2,4319.1,9.21719716]
[1757356775334,14.76,4319.2,4319.1,9.21719716]
[1757356775925,14.76,4319.2,4319.1,9.22329716]
[1757356777069,15.99,4319.2,4319.1,9.21959716]
[1757356777271,15.99,4319.2,4319.1,9.21719716]
[1757356778406,17.22,4319.2,4319.1,9.21719716]
[1757356779713,18.45,4319.2,4319.1,9.21719716]
[1757356781073,19.68,4319.2,4319.1,9.21719716]
[1757356782437,20.91,4319.2,4319.1,9.21719716]
[1757356783873,22.14,4319.2,4319.1,9.21719716]
[1757356785071,22.14,4319.2,4319.1,9.91165848]
[1757356785230,23.37,4319.2,4319.1,9.91165848]
[1757356785571,23.37,4319.2,4319.1,39.91535848]
[1757356785743,23.37,4319.2,4319.1,40.03295848]
[1757356786069,1.3452,4320.2,4319.7,2.31497557]
[1757356786070,0.001,4319.8,4319.7,2.31497557]
[1757356786256,0.001,4319.8,4319.7,10.96587557]
[1757356787329,0.001,4319.8,4319.7,11.66022599]
[1757356787937,1.231,4319.8,4319.7,11.66022599]
[1757356788128,1.231,4319.8,4319.7,7.78532599]
[1757356788331,1.231,4319.8,4319.7,4.776]
[1757356788332,4.2754,4319.8,4319.7,4.776]
[1757356788564,4.2754,4319.8,4319.7,8.649]
[1757356789500,5.5054,4319.8,4319.7,10.96397557]
[1757356790966,6.7354,4319.8,4319.7,10.96397557]
[1757356791154,3.691,4319.8,4319.7,10.96397557]
[1757356791360,3.691,4319.8,4319.7,10.96787557]
[1757356792054,3.691,4319.8,4319.7,10.96397557]
[1757356792483,4.921,4319.8,4319.7,10.96397557]
[1757356793783,6.151,4319.8,4319.7,10.96397557]
[1757356794410,6.4606,4319.8,4319.7,10.96397557]
[1757356794619,9.1954,4319.8,4319.7,10.96397557]
[1757356795185,9.1954,4319.8,4319.7,8.648]
[1757356795186,10.4254,4319.8,4319.7,8.648]
[1757356795798,11.69942527,4319.8,4319.7,4.776]
[1757356796017,14.01434725,4319.8,4319.7,8.648]
[1757356796409,14.80634725,4319.8,4319.7,8.648]
[1757356796611,14.80634725,4319.8,4319.7,1.776]
[1757356796612,16.03634725,4319.8,4319.7,1.776]
[1757356796931,16.03634725,4319.8,4319.7,5.648]
[1757356797636,13.72142527,4319.8,4319.7,5.648]
[1757356797931,11.6554,4319.8,4319.7,8.648]
[1757356798134,12.8854,4319.8,4319.7,8.648]
[1757356799003,9.841,4319.8,4319.7,8.648]
[1757356799206,9.841,4319.8,4319.7,10.96687557]
[1757356799439,9.841,4319.8,4319.7,8.6519]
[1757356799756,11.071,4319.8,4319.7,10.96687557]
[1757356803743,13.531,4319.8,4319.7,10.96197557]
[1757356804153,14.761,4319.8,4319.7,10.96197557]
[1757356804358,14.761,4319.8,4319.7,10.96587557]
[1757356805563,15.991,4319.8,4319.7,10.96587557]
[1757356806561,15.991,4319.8,4319.7,10.96827557]
[1757356806716,15.991,4319.8,4319.7,40.97197557]
[1757356806913,17.221,4319.8,4319.7,40.97197557]
[1757356807579,17.221,4319.8,4319.7,10.96587557]
[1757356808084,17.221,4319.8,4319.7,7.09487557]
[1757356808264,18.451,4319.8,4319.7,10.96787557]
[1757356808641,18.451,4319.8,4319.7,7.09487557]
[1757356808873,1.23,4320.2,4319.8,3.0]
[1757356809102,1.23,4320.2,4320.1,2.31476123]
[1757356809231,0.001,4320.3,4320.2,5.31470765]
[1757356809435,0.001,4320.3,4320.2,35.63971861]
[1757356809703,0.001,4320.3,4320.2,35.64361861]
[1757356810891,1.231,4320.3,4320.2,35.64361861]
[1757356811181,0.001,4320.7,4320.6,2.31449335]
[1757356811389,0.001,4320.7,4320.6,40.98649335]
[1757356811552,0.001,4320.7,4320.6,40.99039335]
[1757356811944,0.001,4320.7,4320.6,41.16650619]
[1757356812356,1.231,4320.7,4320.6,41.16650619]
[1757356812570,1.231,4320.7,4320.6,41.16040619]
[1757356812988,1.231,4320.7,4320.6,34.776]
[1757356813287,4.4189,4320.7,4320.6,5.673]
[1757356813497,4.5445,4320.7,4320.6,8.673]
[1757356813671,5.7745,4320.7,4320.6,5.673]
[1757356814384,5.7745,4320.7,4320.6,1.776]
[1757356814587,5.7745,4320.7,4320.6,5.674]
[1757356814588,8.88093978,4320.7,4320.6,5.674]
[1757356814995,10.11093978,4320.7,4320.6,5.674]
[1757356815149,10.11093978,4320.7,4320.6,1.776]
[1757356815350,10.11093978,4320.7,4319.8,1.776]
[1757356815351,0.792,4320.6,4319.8,1.776]
[1757356815562,3.40776839,4319.9,4319.8,1.776]
[1757356815795,3.9799,4319.9,4319.8,1.776]
[1757356816179,6.29476839,4319.9,4319.8,1.776]
[1757356816385,7.52476839,4319.9,4319.8,1.776]
[1757356816887,7.52476839,4319.9,4319.8,5.675]
[1757356817082,8.50872153,4319.9,4319.8,5.675]
[1757356817753,9.73872153,4319.9,4319.8,5.675]
[1757356819163,10.96872153,4319.9,4319.8,5.675]
[1757356819494,7.6699,4319.9,4319.8,5.675]
[1757356819700,9.98476839,4319.9,4319.8,5.675]
[1757356820710,11.21476839,4319.9,4319.8,5.675]
[1757356821501,11.21476839,4319.9,4319.8,5.677]
[1757356822015,10.1299,4319.9,4319.8,5.677]
[1757356822213,12.44476839,4319.9,4319.8,5.677]
[1757356822515,13.92071694,4319.9,4319.8,5.677]
[1757356822884,13.92071694,4319.9,4319.8,1.778]
[1757356823285,13.92071694,4319.9,4319.8,0.002]
[1757356823286,15.15071694,4319.9,4319.8,0.002]
[1757356824600,16.38071694,4319.9,4319.8,0.002]
[1757356824938,16.38071694,4319.9,4319.8,1.778]
[1757356824939,8.61,4319.9,4319.8,1.778]
[1757356825721,9.3781,4319.9,4319.8,1.778]
[1757356826048,10.6081,4319.9,4319.8,1.778]
[1757356826216,10.6081,4319.9,4319.8,5.682]
[1757356826418,9.84,4319.9,4319.8,5.6859]
[1757356827522,14.2579,4319.9,4319.8,5.682]
[1757356828377,11.8381,4319.9,4319.8,5.682]
[1757356828618,14.2579,4319.9,4319.8,5.68]
[1757356828821,15.4879,4319.9,4319.8,5.68]
[1757356830076,16.7179,4319.9,4319.8,5.68]
[1757356830272,19.03276839,4319.9,4319.8,5.68]
[1757356830619,16.7179,4319.9,4319.8,5.68]
[1757356830918,14.2981,4319.9,4319.8,5.68]
[1757356831283,13.53,4319.9,4319.8,5.68]
[1757356831618,14.76,4319.9,4319.8,8.6839]
[1757356832366,14.76,4319.9,4319.8,10.99882198]
[1757356832512,14.76,4319.9,4319.8,8.6839]
[1757356832817,14.76,4319.9,4319.8,10.99882198]
[1757356833030,15.99,4319.9,4319.8,10.99882198]
[1757356834522,17.22,4319.9,4319.8,10.99882198]
[1757356836029,18.45,4319.9,4319.8,10.99882198]
[1757356836527,18.45,4319.9,4319.8,10.99492198]
[1757356837132,18.45,4319.9,4319.8,4.778]
[1757356837300,22.7064,4319.9,4319.8,4.778]
[1757356837637,22.7064,4319.9,4319.8,8.676]
[1757356838888,23.9364,4319.9,4319.8,8.676]
[1757356840136,25.1664,4319.9,4319.8,8.676]
[1757356841513,26.3964,4319.9,4319.8,8.676]
[1757356843288,27.6264,4319.9,4319.8,8.676]
[1757356844701,27.6264,4319.9,4319.8,8.673]
[1757356844920,28.8564,4319.9,4319.8,8.673]
[1757356846551,30.0864,4319.9,4319.8,8.673]
[1757356847721,29.6528,4319.9,4319.8,8.673]
[1757356847921,31.3164,4319.9,4319.8,8.673]
[1757356849360,29.9536,4319.9,4319.8,8.673]
[1757356849964,32.5464,4319.9,4319.8,8.673]
[1757356850328,29.52,4319.9,4319.8,8.673]